Cogmind - Beta 11.1 @@@ ROGUE MODE // 2022.11.26 @ 00:05:00 Player: arcadio Result: Destroyed by as-86678 with Assembled Rifle Performance ------------- Evolutions (0) 0 Regions Visited (4) 800 Robots Destroyed (27) 135 Value Destroyed (629) 629 Prototype IDs (4) 80 Alien Tech Used (0) 0 Bonus (208) 208 TOTAL SCORE: 1852 Bonus ------- Follower Combat Kills 222 Friendly Fire -14 Cogmind --------- Core Integrity 0/250 Matter 300/300 Energy 99/100 System Corruption 1% Temperature Cool (0) Movement Core (250) Ox4 Location -9/Mines Parts ------- > --- POWER (1) -------- (None) > --- PROPULSION (2) --- (None) > --- UTILITY (2) ------ Medium Storage Unit Signal Interpreter > --- WEAPON (2) ------- Beamcaster > --- INVENTORY (10) --- Improved Ion Engine Aluminum Leg Aluminum Leg Aluminum Leg Improved Heat Sink Large Storage Unit Experimental Sensor Array ECM Suite Grenade Launcher Heavy Explosive Trap Peak State ------------ > --- POWER ------------ Light Angular Momentum Engine > --- PROPULSION ------- Carbon-fiber Leg Carbon-fiber Leg > --- UTILITY ---------- Medium Storage Unit Signal Interpreter > --- WEAPON ----------- EM Pulse Gun Beamcaster > --- INVENTORY -------- Aluminum Leg Aluminum Leg Aluminum Leg Aluminum Leg Improved Heat Sink Large Storage Unit Experimental Sensor Array ECM Suite Light Assault Rifle Grenade Launcher [Rating: 21] Favorites ----------- Power Light Angular Momentum Engine Engine Light Angular Momentum Engine Power Core Light Nuclear Core Propulsion Aluminum Leg Leg Aluminum Leg Utility Signal Interpreter Device Seismic Detector Storage Medium Storage Unit Processor Signal Interpreter Weapon EM Pulse Gun Energy Gun EM Pulse Gun Ballistic Gun Light Assault Rifle Launcher Grenade Launcher Special Weapon Mining Laser Build | -11 -10 -10 -10 -9 ------- Run | Scr Mat Min Exi Min Slots Evolved . | . . . . . Power . | . . . . . Propulsion . | . . . . . Utility . | . . . . . Weapon . | . . . . . Parts Attached 35 | 6 14 12 . 3 Power 4 | 1 . 2 . 1 Engine 3 | 1 . 2 . . Core 1 | . . . . 1 Reactor . | . . . . . Propulsion 9 | 2 2 4 . 1 Treads . | . . . . . Leg 9 | 2 2 4 . 1 Wheel . | . . . . . Hover . | . . . . . Flight . | . . . . . Utility 5 | 1 4 . . . Device 2 | . 2 . . . Storage 2 | 1 1 . . . Processor 1 | . 1 . . . Hackware . | . . . . . Protection . | . . . . . Artifact . | . . . . . Weapon 17 | 2 8 6 . 1 Energy Gun 11 | 2 4 5 . . Energy Cannon . | . . . . . Ballistic Gun 1 | . . . . 1 Ballistic Cannon . | . . . . . Launcher 3 | . 2 1 . . Special Weapon 2 | . 2 . . . Impact Weapon . | . . . . . Slashing Weapon . | . . . . . Piercing Weapon . | . . . . . Special Melee Weapon . | . . . . . Unidentified Prototypes . | . . . . . Parts Lost 10 | . 1 3 . 6 Power 3 | . . 1 . 2 Propulsion 2 | . . . . 2 Utility . | . . . . . Weapon 5 | . 1 2 . 2 Highest Loss Streak 4 | . 1 2 . 4 To Critical Strikes . | . . . . . Average Slot Usage (%) 99 | . 98 99 100 98 Engine 13 | . 14 13 14 10 Leg 27 | . 28 28 28 27 Device 1 | . 4 . . . Storage 14 | . 14 14 14 14 Processor 11 | . 8 14 14 14 Energy Gun 24 | . 23 22 28 24 Special Weapon 2 | . 3 4 . . Naked Turns . | . . . . . Heaviest Build 26 | 14 19 26 26 26 Greatest Support 30 | 20 20 25 25 30 Greatest Overweight (x) 4 | . . 1 1 4 Average Overweight (x) . | . . . 1 . Largest Inventory Capacity 10 | 8 10 10 10 10 Average Capacity 9 | 7 8 10 10 10 Most Carried 10 | 6 10 10 10 10 Average Carried 9 | 2 8 9 10 9 Final Capacity 10 | 8 10 10 10 10 Final Carried 10 | 6 10 10 10 10 Class Distribution -------------------- 49% | Mutant 46% | Scavenger-Mutant 3% | Commander-Mutant Dominant Class ---------------- Mutant | -10/Materials Mutant | -10/Mines Scavenger-Mutant | -10/Exiles Scavenger-Mutant | -9/Mines Resources | -11 -10 -10 -10 -9 ----------- Run | Scr Mat Min Exi Min Matter Collected 676 | 190 250 185 . 51 Remotely . | . . . . . Salvage Created 626 | . 379 150 . 97 Parts 51 | . 35 6 . 10 Haulers Intercepted 2 | . 2 . . . Recyclers Shooed . | . . . . . Parts Field Recycled . | . . . . . Retrieved Matter . | . . . . . Parts Self-Destructed . | . . . . . Prevented . | . . . . . Kills | -11 -10 -10 -10 -9 ------- Run | Scr Mat Min Exi Min Combat Hostiles Destroyed 21 | . 13 4 . 4 Guns 11 | . 5 2 . 4 Cannons 1 | . 1 . . . AOE 9 | . 7 2 . . Classes Destroyed 6 | . 6 . . . Worker 1 | . 1 . . . Builder 1 | . 1 . . . Hauler 2 | . 2 . . . Watcher 2 | . 2 . . . Swarmer 9 | . 6 . . 3 Grunt 12 | . 7 4 . 1 Best Kill Streak 5 | . 5 2 . 3 Combat Bots Only 4 | . 4 2 . 3 Max Kills in Single Turn 3 | . 3 1 . 2 Gunslinging . | . . . . . Exploded 2 | . 2 1 . . Melee . | . . . . . Uniques/NPCs Destroyed . | . . . . . Combat | -11 -10 -10 -10 -9 -------- Run | Scr Mat Min Exi Min Damage Taken 1384 | . 383 395 . 606 Core 261 | . 85 41 . 135 Absorbed by Shields . | . . . . . Regen/Repaired (Parts) 165 | . 165 . . . Core Remaining (%) 100 | 100 . . . . Volleys Fired 73 | . 42 23 . 8 Largest 2 | . 2 2 . 2 Hottest 150 | . 150 80 . 115 Shots Fired 117 | . 70 31 . 16 Gun 96 | . 58 22 . 16 Cannon . | . . . . . Launcher 14 | . 5 9 . . Special 7 | . 7 . . . Kinetic 1 | . . . . 1 Thermal 70 | . 48 14 . 8 Explosive 14 | . 5 9 . . Electromagnetic 32 | . 17 8 . 7 Robot Hit Streak 13 | . 13 6 . 2 Robot Miss Streak 4 | . 4 1 . 2 Penetration Max . | . . . . . Secondary Targets 1 | . . 1 . . Max Gunslinging Chain 1 | . . 1 . . Shots Hit Robots 70 | . 40 23 . 7 Core Hits 42 | . 26 10 . 6 Critical Kills . | . . . . . Critical Parts Destroyed . | . . . . . Critical Strikes 5 | . 3 1 . 1 Burn 5 | . 3 1 . 1 Melee Attacks . | . . . . . Impact . | . . . . . Slashing . | . . . . . Piercing . | . . . . . Sneak Attacks . | . . . . . Combat Hostiles . | . . . . . Follow-up Attacks . | . . . . . Damage Inflicted 1621 | . 1002 481 . 138 Guns 780 | . 426 216 . 138 Cannons . | . . . . . Explosions 769 | . 504 265 . . Melee . | . . . . . Ramming . | . . . . . Kinetic 10 | . . . . 10 Thermal 661 | . 423 172 . 66 Explosive 674 | . 442 232 . . Electromagnetic 276 | . 137 77 . 62 Impact . | . . . . . Slashing . | . . . . . Piercing . | . . . . . Highest Corruption 1 | . . . . 1 Average Corruption 1 | . . . . 1 Corruption Purged . | . . . . . Corruption Blocked . | . . . . . Effects 3 | . . . . 3 Heat Flow Errors 1 | . . . . 1 Energy Discharges 2 | . . . . 2 Overload Shots . | . . . . . Overflow Damage 2 | . 2 . . . Projectiles . | . . . . . Explosions 2 | . 2 . . . Melee . | . . . . . Knockbacks . | . . . . . Impact . | . . . . . Kinetic . | . . . . . Secondary . | . . . . . Self-Inflicted Damage 82 | . 39 43 . . Shots 3 | . 1 2 . . Rammed . | . . . . . Targets Rammed . | . . . . . Kicked . | . . . . . Crushed . | . . . . . Highest Temperature 245 | . 186 245 . 240 Average Temperature 66 | . 50 92 . 91 Received Heat Transfer 391 | . 114 222 . 55 Siege Activations . | . . . . . Robots Corrupted . | . . . . . Combat Hostiles . | . . . . . Parts Fried . | . . . . . Impact Corruptions . | . . . . . Robots Melted . | . . . . . Combat Hostiles . | . . . . . Parts Melted 4 | . 4 . . . Heat Transferred 1892 | . 1223 484 . 185 Parts Sabotaged . | . . . . . Parts Stolen . | . . . . . Parts Stripped . | . . . . . Power Chain Reactions 2 | . 1 1 . . Missiles Intercepted . | . . . . . Alert | -11 -10 -10 -10 -9 ------- Run | Scr Mat Min Exi Min Peak Influence 399 | . 399 299 . 222 Initial 103 | . . 103 . . Average 186 | . 218 218 . 102 Maximum Alert Level 1 | . 1 1 . 1 Low Security (%) 53 | 100 35 42 . 97 Level 1 46 | . 64 57 . 2 Level 2 . | . . . . . Level 3 . | . . . . . Level 4 . | . . . . . Level 5 . | . . . . . High Security . | . . . . . Max Security . | . . . . . Squads Dispatched 2 | . 2 . . . Investigation . | . . . . . Extermination . | . . . . . Reinforcement 2 | . 2 . . . Assault . | . . . . . Garrison . | . . . . . Intercept . | . . . . . Searches Triggered . | . . . . . Construction Impeded . | . . . . . Haulers Reinforced . | . . . . . Active Scanning Responses . | . . . . . Cargo Convoy Interrupts . | . . . . . Stealth | -11 -10 -10 -10 -9 --------- Run | Scr Mat Min Exi Min Distress Signals . | . . . . . Communications Jammed . | . . . . . Distress Signals . | . . . . . Times Spotted 53 | . 21 7 . 25 Peak Tracking Total 14 | . 4 2 . 14 Tactical Retreats 1 | . 1 . . . Traps | -11 -10 -10 -10 -9 ------- Run | Scr Mat Min Exi Min Traps Triggered 1 | . 1 . . . Indirectly . | . . . . . Trap Hack Attempts . | . . . . . Triggered . | . . . . . Disarmed . | . . . . . Reprogrammed . | . . . . . Reused . | . . . . . Traps Extracted . | . . . . . Installed . | . . . . . Triggered . | . . . . . Most Traps Carried 1 | . . . . 1 Machines | -11 -10 -10 -10 -9 ---------- Run | Scr Mat Min Exi Min Machines Disabled 5 | . 2 1 . 2 Max in Single Turn 1 | . 1 . . 1 Machines Sabotaged . | . . . . . Garrisons Compromised . | . . . . . Overloaded Fab Kills . | . . . . . Hacking | -11 -10 -10 -10 -9 --------- Run | Scr Mat Min Exi Min Machines Accessed 9 | . 8 . . 1 Terminals 7 | . 7 . . . Fabricators . | . . . . . Repair Stations 1 | . 1 . . . Recycling Units . | . . . . . Scanalyzers . | . . . . . Garrison Access . | . . . . . Total Hacks 31 | . 30 . . 1 Successful 19 | . 18 . . 1 Failed 11 | . 11 . . . Catastrophic 2 | . 2 . . . Database Lockouts 1 | . 1 . . . Manual 13 | . 11 . 2 . Terminals 20 | . 20 . . . Fabricators . | . . . . . Repair Stations 10 | . 10 . . . Recycling Units . | . . . . . Scanalyzers . | . . . . . Garrison Access . | . . . . . Terminal Hacks 8 | . 7 . . 1 Robot Analysis 3 | . 3 . . . Prototype ID Bank 3 | . 3 . . . Open Door 1 | . . . . 1 Terminal Index 1 | . 1 . . . Fabricator Hacks . | . . . . . Repair Station Hacks 8 | . 8 . . . Scan Component 4 | . 4 . . . Repair 4 | . 4 . . . Recycling Unit Hacks . | . . . . . Scanalyzer . | . . . . . Garrison Access Hacks . | . . . . . Unauthorized Hacks 3 | . 3 . . . Terminals 3 | . 3 . . . Assimilate 1 | . 1 . . . Botnet 2 | . 2 . . . Fabricators . | . . . . . Repair Stations . | . . . . . Recycling Units . | . . . . . Scanalyzers . | . . . . . Garrison Access . | . . . . . Data Cores Recovered . | . . . . . Used . | . . . . . Hacking Detections 8 | . 8 . . . Full Trace Events . | . . . . . Feedback Events . | . . . . . Feedback Blocked . | . . . . . Robot Schematics Acquired . | . . . . . Robots Built . | . . . . . Authchips . | . . . . . Time . | . . . . . Total Robot Build Rating . | . . . . . Part Schematics Acquired . | . . . . . Parts Built . | . . . . . Authchips . | . . . . . Time . | . . . . . Total Part Build Rating . | . . . . . Parts Repaired 4 | . 4 . . . Time 104 | . 104 . . . Parts Recycled . | . . . . . Recycled Matter . | . . . . . Retrieved Matter . | . . . . . Retrieved Components . | . . . . . Parts Scanalyzed . | . . . . . Part Schematics Acquired . | . . . . . Parts Damaged . | . . . . . Bothacking | -11 -10 -10 -10 -9 ------------ Run | Scr Mat Min Exi Min Used RIF Installer . | . . . . . Robots Hacked . | . . . . . Non-combat . | . . . . . Combat . | . . . . . Robot Hacks Applied . | . . . . . Relay Couplers Released . | . . . . . Fabnet Peak Effective % . | . . . . . Robots Rewired . | . . . . . Allies Hacked . | . . . . . Hacks Repelled . | . . . . . Allies | -11 -10 -10 -10 -9 -------- Run | Scr Mat Min Exi Min Total Allies 6 | . 1 5 . . Largest Group 6 | . 1 6 4 3 Highest-Rated Group 92 | . 10 92 53 42 Highest-Rated Ally 31 | . 10 31 16 16 Total Orders . | . . . . . Ally Attacks 40 | . . 19 . 21 Total Damage 493 | . . 226 . 267 Kills 8 | . . 4 . 4 Allies Corrupted . | . . . . . Allies Melted . | . . . . . Intel | -11 -10 -10 -10 -9 ------- Run | Scr Mat Min Exi Min Robot Analysis Total 2 | . 2 . . . Derelict Logs Recovered 2 | . . 1 . 1 Drone Launches . | . . . . . Drone Recoveries . | . . . . . Exploration | -11 -10 -10 -10 -9 ------------- Run | Scr Mat Min Exi Min Turns Passed 3346 | 81 1151 645 956 513 Spaces Moved 2110 | 58 726 436 504 386 Core 6 | 4 . . . 2 Treads . | . . . . . Legs 2104 | 54 726 436 504 384 Wheels . | . . . . . Hover . | . . . . . Flight . | . . . . . Fastest Speed 50 | 50 120 120 190 120 Average Speed 138 | 115 120 126 190 122 Slowest Speed 250 | 120 120 190 190 250 Overloaded Moves . | . . . . . Propulsion Burnouts . | . . . . . Robots Hopped . | . . . . . Cave-ins Triggered . | . . . . . Exploration Rate (%) 69 | 4 91 88 89 76 Regions Visited 4 Branch Regions 3 Pre-discovered Areas 1 | . . . . 1 Known Exits Taken 3 | . 1 1 1 . Unknown Exits Taken 1 | 1 . . . . Scrap Searched 3 | . . 1 . 2 Spaces Dug 3 | . 3 . . . Terrain Destroyed 94 | . 37 57 . . Melee . | . . . . . Projectile 3 | . 3 . . . AOE 91 | . 34 57 . . Terrain Rammed . | . . . . . Walls Destroyed . | . . . . . Machines Disabled . | . . . . . Actions | -11 -10 -10 -10 -9 --------- Run | Scr Mat Min Exi Min Total 2410 | 69 922 503 503 413 Wait 148 | . 117 21 . 10 Move 2106 | 57 725 435 503 386 Hop . | . . . . . Pick Up 28 | 6 14 4 . 4 Fast Attach 8 | 6 2 . . . Attach 6 | . 1 3 . 2 Detach . | . . . . . Swap 21 | . 11 9 . 1 Drop 20 | . 10 8 . 2 Fire 73 | . 42 23 . 8 Melee . | . . . . . Ram . | . . . . . Kick . | . . . . . Crush . | . . . . . Escape Stasis . | . . . . . Rewire . | . . . . . Trap . | . . . . . Miscellaneous . | . . . . . Route ------- -11/Scrapyard -10/Materials (discovered 3 exits: *Mat x2 / *Min) -10/Mines (discovered 3 exits: *Mat x2 / *Exi) -10/Exiles -9/Mines (discovered 1 exit: *Mat) History --------- Turn | Location | Event 3 | -11/Scrapyard | Discovered new exit (range 16) 82 | -11/Scrapyard | Entered Materials 204 | -10/Materials | Discovered new exit (range 16) 312 | -10/Materials | Build established: Mutant 410 | -10/Materials | Discovered new exit (range 12) 584 | -10/Materials | Repaired Aluminum Leg 612 | -10/Materials | Repaired Aluminum Leg 639 | -10/Materials | Repaired Grenade Launcher 666 | -10/Materials | Repaired Aluminum Leg 815 | -10/Materials | Central database locked down 1047 | -10/Materials | Discovered new exit (range 8) 1232 | -10/Materials | Identified exit to Mines 1233 | -10/Materials | Entered Mines 1233 | -10/Mines | Accompanied by 1 ally 1271 | -10/Mines | Discovered new exit (range 15) 1298 | -10/Mines | Identified exit to Exiles 1339 | -10/Mines | Learned Materials garrison access intel 1463 | -10/Mines | Core integrity fell below 50% 1531 | -10/Mines | Discovered new exit (range 5) 1536 | -10/Mines | Identified exit to Materials 1606 | -10/Mines | Assisted by bots powering up and referring to "LRC-V3" 1664 | -10/Mines | Found a damaged Exp. Sensor Array with a note attached 1666 | -10/Mines | Found Prototype Device 1805 | -10/Mines | Discovered exit to Materials (range 7) 1862 | -10/Mines | Deemed a non-threat by the Exiles lab entrance 1878 | -10/Mines | Entered Exiles 1878 | -10/Exiles | Accompanied by 4 allies 1924 | -10/Exiles | Met 8R-AWN 1956 | -10/Exiles | Met EX-HEX 2051 | -10/Exiles | Met EX-DEC 2082 | -10/Exiles | Build established: Scavenger-Mutant 2094 | -10/Exiles | Visited The Gauntlet 2382 | -10/Exiles | Met EX-BIN 2817 | -10/Exiles | Discovered new exit (range 10) 2830 | -10/Exiles | Identified exit to Mines 2834 | -10/Exiles | Entered Mines 2834 | -9/Mines | Accompanied by 3 allies 2914 | -9/Mines | Discovered new exit (range 14) 2929 | -9/Mines | Identified exit to Materials 2939 | -9/Mines | Met a Derelict who couldn't figure out how to use a Trap Extractor 3254 | -9/Mines | Found a hidden stash of uninstalled traps 3310 | -9/Mines | Assembled infested the area 3320 | -9/Mines | Learned location of Zion (-6) 3335 | -9/Mines | Core integrity fell below 20% 3347 | -9/Mines | Destroyed by as-86678 with Assembled Rifle Last Messages --------------- 03326_ Trooper 1b destroyed. 03328_ K-01 Serf collects debris. 03328_ Technician 1a destroyed. 03329_ as-76591 destroyed. 03330_ The unstable cave ceiling collapses. 03330_ as-30995 destroyed. 03330_ as-12748 destroyed. 03330_ as-80407 destroyed. 03332_ Carbon-fiber Leg destroyed. 03332_ Lgt. Nuclear Core destroyed. 03332_ K-01 Serf collects debris. 03332_ Lgt. Assault Rifle destroyed. 03332_ as-39858 destroyed. 03332_ as-08735 destroyed. 03332_ as-11069 destroyed. 03336_ K-01 Serf destroyed. 03337_ K-01 Serf collects debris. 03339_ D-53 Grenadier destroyed. 03342_ The unstable cave ceiling collapses. 03344_ Carbon-fiber Leg destroyed. Map ----- +----------------------------------------------------+ | ????????????????????????????????# #????????#### # | | ???????????????????????????????? #????????# # | | ???????????????????????????????? #??###???# #### | | ????????????????????????????????####### #??# #??? | | ???????????????????????????????????## ??# #??? | | ??????????????????????????????###### ### #??? | | ??????????????????????????????? ## #### | | ???????????????##???????????????????# && | | ??????????????? ???????????????????# & & % | | ??????????????# #???????????????????# ### | | ??????????????# #??????????????????# ## ##?# | | ??????????????# #??????????????????# #?# ##?## | | ??????????????# #?????????????????# #??# #??# | | ??????????????#%#???????????????# ???# #??# | | ?????????????## ##?????????????# ????# #??## | | ?????????????# ##????????????# ?????# #???# | | ?????????##### #????????????# ?????## #???? | | ?????????# % #????????????# ?????## ##### | | ?????????## #????????????## ??????# # | | ??##?????# ##?????????????#???????# | | ??? ???# ##????????????????????## | | ?????# ## ##??????????????###### | | ?????# #########??????## # | | ?????? ??#%= ## ##????## ### ### | | ???????# #% = # ##??## ##??###?? | | ???????# != a a@ #### ## ##???????? | | # % a ######????????? | | a ##?????????????? | | #??????????????? | | # #??????????????? | | ## #### #??????????????? | | #??## #???##### #### #??????????????? | | ?????###????????## ###??####??????????????? | | ???????????????????########??????????????????????? | | ?????????????????????????????????????????????????? | | ?????????????????????????????????????????????????? | | | | | | | | | | | | | | | | | | | | | | | | | | | | | +----------------------------------------------------+ Best States ------------- Heat Dissipation 25 Energy Generation 18 Energy Capacity 250 Matter Stores 300 Matter Capacity 300 Sight Range 16 Terrain Scan Density 10 ECM Strength 1 Evasion (%) 55 Item Schematics ----------------- None Robot Schematics ------------------ None Fabricated ------------ Nothing Alien Tech Used ----------------- None Achievements -------------- None Challenges ------------ None Game ------ Seed BombardmentReactiveDetector Manual? 0 Play Time 00:33:05 Cumulative 51.9 hours Start 2022.11.25 @ 23:34:31 End 2022.11.26 @ 00:05:00 Sessions 1 Manual Loads 0 Difficulty Rogue Special Mode None Game No. 47 Rogue 47 Adventurer 0 Explorer 0 Win Type - Total 0 Types 0/0/0/0/0/0/0/0/0 Lore% 36 Gallery% 38 Achievement% 30 Wizard Run 0 Options --------- ASCII 0 Keyboard 1 Movement Numpad Keybinds 0 Fullscreen 2 Font 18/SmallcapsGlow Map View 76x50 Tactical HUD 1 Map Filters NONE Filters NONE Steam 1 RUN: 7f0a2a7e-c0cf-43df-aa18-5742fd40eb29